bitfinex/quotes_SOLUSD_20241218
["timestamp","ask_amount","ask_price","bid_price","bid_amount"]
[1734480643675,11.77952182,224.65,224.6,2.47651894]
[1734480643851,11.77952182,224.65,224.6,11.779522]
[1734480644434,11.77952182,224.62,224.6,11.779522]
[1734480644835,11.77952182,224.61,224.59,2.47651894]
[1734480645042,11.77952182,224.6,224.56,2.47651894]
[1734480645266,11.77952182,224.59,224.57,11.779522]
[1734480646843,11.77952182,224.6,224.57,11.779522]
[1734480647046,11.77952182,224.58,224.57,11.779522]
[1734480647749,11.77952182,224.58,224.55,17.37801966]
[1734480647961,11.77952182,224.56,224.55,11.779521]
[1734480648155,11.77952182,224.56,224.5,2.47810068]
[1734480648363,11.77952182,224.56,224.49,11.779521]
[1734480648576,11.77952182,224.56,224.48,5.59849866]
[1734480649385,11.77952182,224.56,224.48,17.37802066]
[1734480649562,11.77952182,224.53,224.48,17.37802066]
[1734480649760,11.77952182,224.52,224.48,5.59849866]
[1734480649962,11.77952182,224.51,224.48,5.59849866]
[1734480650181,7.581,224.61,224.48,5.59849866]
[1734480650182,11.77952182,224.52,224.48,5.59849866]
[1734480650378,11.77952182,224.51,224.48,5.59849866]
[1734480650693,11.77414555,224.49,224.44,2.47639389]
[1734480651005,11.77414555,224.48,224.42,13.39345425]
[1734480651366,11.77414555,224.48,224.42,10.91706036]
[1734480651571,23.776884,224.6,224.42,10.91706036]
[1734480651572,11.77414555,224.46,224.42,10.91706036]
[1734480651989,11.77414555,224.46,224.42,5.59849866]
[1734480652397,11.77414555,224.45,224.42,5.59849866]
[1734480652609,11.77414555,224.44,224.42,5.59849866]
[1734480653103,11.77414555,224.47,224.42,5.59849866]
[1734480653405,11.77414555,224.45,224.42,5.59849866]
[1734480654874,11.77414555,224.44,224.42,5.59849866]
[1734480655479,11.77414555,224.45,224.42,5.59849866]
[1734480656089,11.77414555,224.44,224.42,5.59849866]
[1734480656386,11.77414555,224.43,224.39,5.598499]
[1734480656969,19.35514555,224.51,224.39,5.598499]
[1734480656970,11.77414555,224.42,224.39,5.598499]
[1734480657801,11.77414555,224.41,224.35,5.59849866]
[1734480658193,19.35514555,224.51,224.36,5.598499]
[1734480658194,11.77414555,224.45,224.36,5.598499]
[1734480658392,11.77414555,224.48,224.39,20.0]
[1734480658594,11.77414555,224.48,224.4,5.59849866]
[1734480659101,11.77414555,224.44,224.4,5.59849866]
[1734480659703,11.77414555,224.45,224.4,5.59849866]
[1734480660507,11.77414555,224.52,224.43,20.0]
[1734480660676,11.77414555,224.52,224.44,25.59849866]
[1734480660993,11.77414555,224.48,224.44,25.59849866]
[1734480661196,11.77414555,224.5,224.44,25.59849866]
[1734480661591,11.77414555,224.51,224.44,25.59849866]
[1734480662389,11.77414555,224.5,224.44,25.59849866]
[1734480662803,11.77414555,224.48,224.44,5.59849866]
[1734480663183,6.0373,224.56,224.44,5.59849866]
[1734480663184,11.77414555,224.5,224.44,5.59849866]
[1734480663692,11.77414555,224.52,224.44,5.59849866]
[1734480665294,11.77414555,224.52,224.47,20.0]
[1734480666006,11.77414555,224.52,224.44,5.59849866]
[1734480668032,1.5437,224.57,224.47,20.0]
[1734480668217,1.6528,224.62,224.48,25.59849866]
[1734480668427,11.77414555,224.61,224.49,0.66795602]
[1734480668722,11.77414555,224.61,224.53,20.0]
[1734480668926,11.77414555,224.59,224.53,20.0]
[1734480669908,11.77414555,224.57,224.5,10.91706036]
[1734480670297,11.77414555,224.59,224.53,20.0]
[1734480672139,1.6528,224.75,224.58,20.0]
[1734480672322,11.77414555,224.7,224.59,0.66767703]
[1734480672641,1.6528,224.75,224.62,20.0]
[1734480672794,11.77414555,224.74,224.66,20.0]
[1734480673923,1.6528,224.75,224.63,14.03602862]
[1734480673924,11.77414555,224.7,224.63,10.91706036]
[1734480674223,11.77414555,224.7,224.63,5.59849866]
[1734480675418,11.77414555,224.66,224.63,5.59849866]
[1734480675604,11.77414555,224.73,224.62,20.0]
[1734480675804,11.77414555,224.66,224.62,20.0]
[1734480676303,11.77414555,224.66,224.59,22.45143811]
[1734480676503,11.77414555,224.66,224.59,20.0]
[1734480676802,11.77414555,224.66,224.6,20.0]
[1734480677310,1.6528,224.75,224.59,0.66774904]
[1734480677509,11.77414555,224.7,224.6,5.59849866]
[1734480677708,11.77414555,224.67,224.6,5.59849866]
[1734480678323,11.77414555,224.67,224.6,8.04993677]
[1734480678903,11.77414555,224.67,224.6,5.59849866]
[1734480679224,11.77414555,224.67,224.6,8.04993677]
[1734480679624,11.77414555,224.67,224.6,5.59849866]
[1734480679998,11.77414555,224.73,224.6,5.59849866]
[1734480679999,11.77414555,224.65,224.6,5.59849866]
[1734480680400,11.77414555,224.64,224.6,5.59849866]
[1734480680640,11.77414555,224.62,224.58,2.45143811]
[1734480680846,11.77414555,224.61,224.57,2.45143811]
[1734480681045,11.77414555,224.61,224.56,2.45143811]
[1734480681347,11.77414555,224.61,224.55,2.45143811]
[1734480681842,11.77414555,224.64,224.55,5.59849866]
[1734480682037,11.77414555,224.64,224.55,8.04993677]
[1734480682208,11.77414555,224.64,224.56,5.59849866]
[1734480682927,11.77414555,224.64,224.56,8.04993677]
[1734480683136,1.6561,224.72,224.57,0.66780021]
[1734480683336,1.6561,224.72,224.61,20.0]
[1734480683533,1.6561,224.72,224.62,10.91655481]
[1734480683705,11.77414555,224.71,224.62,10.91655481]
[1734480683907,11.77414555,224.69,224.62,10.91655481]
[1734480684338,1.6561,224.72,224.62,10.91655481]
[1734480684714,11.77414555,224.69,224.62,10.91655481]
[1734480685413,11.77414555,224.71,224.62,10.91655481]
[1734480687031,11.77414555,224.69,224.62,10.91655481]
[1734480687238,11.77414555,224.69,224.62,5.59799311]
[1734480688228,11.77414555,224.65,224.6,2.46080315]
[1734480688439,11.77414555,224.61,224.57,2.46080315]
[1734480688644,11.77414555,224.61,224.56,8.05879626]
[1734480688828,11.77414555,224.61,224.56,5.59799311]
[1734480689342,11.77414555,224.6,224.56,5.59799311]
[1734480690375,11.77414555,224.59,224.5,5.98626872]
[1734480690528,11.77414555,224.59,224.54,2.4654996]
[1734480690737,11.77414555,224.59,224.53,2.4654996]
[1734480690937,11.77414555,224.59,224.52,2.4654996]
[1734480691141,11.77414555,224.59,224.51,5.59799311]
[1734480691142,11.77414555,224.59,224.51,8.06349271]
[1734480691441,11.77414555,224.59,224.51,5.59799311]
[1734480691619,11.77414555,224.6,224.51,5.59799311]
[1734480692626,11.77414555,224.63,224.54,20.0]
[1734480692823,11.77414555,224.63,224.54,26.26582551]
[1734480693144,11.77414555,224.64,224.55,25.59799311]
[1734480694047,11.77414555,224.68,224.56,0.66782921]
[1734480694252,11.77414555,224.7,224.6,20.0]
[1734480694449,11.77414555,224.7,224.61,5.59799311]
[1734480694931,11.77414555,224.71,224.61,5.59799311]
[1734480695257,1.6561,224.72,224.61,5.59799311]
[1734480695451,11.77414555,224.73,224.64,20.0]
[1734480695752,11.77414555,224.73,224.64,25.59799311]
[1734480696556,11.77414555,224.71,224.64,25.59799311]
[1734480697569,11.77414555,224.73,224.64,25.59799311]
[1734480698046,11.77414555,224.75,224.65,0.66752024]
[1734480698632,11.77414555,224.73,224.64,25.59799311]
[1734480701427,1.5331,224.78,224.64,5.59799311]
[1734480701428,11.77414555,224.71,224.64,5.59799311]
[1734480705253,1.5331,224.78,224.64,5.59799311]
[1734480705254,11.77414555,224.72,224.64,5.59799311]
[1734480705565,1.5331,224.78,224.67,22.46923011]
[1734480705566,11.77414555,224.75,224.67,22.46923011]
[1734480705766,11.77414555,224.75,224.67,20.0]
[1734480706068,11.77414555,224.73,224.67,20.0]
[1734480707874,11.77414555,224.75,224.67,20.0]
[1734480708170,11.77414555,224.75,224.67,22.4698732]
[1734480708342,11.77414555,224.79,224.68,6.26547895]
[1734480708548,11.77414555,224.79,224.69,2.4698732]
[1734480708763,11.77414555,224.79,224.69,8.06786631]
[1734480708968,11.77414555,224.79,224.72,20.0]
[1734480709882,11.77414555,224.77,224.72,20.0]
[1734480710465,11.77414555,224.79,224.72,22.4698732]
[1734480711366,11.77414555,224.79,224.73,2.4698732]
[1734480711551,11.77414555,224.8,224.73,2.4698732]
[1734480711753,1.5337,224.83,224.73,2.4698732]
[1734480711957,11.77414555,224.8,224.73,2.4698732]
[1734480712369,1.5337,224.83,224.74,20.0]
[1734480712567,1.5337,224.83,224.76,2.4698732]
[1734480712568,13.30784555,224.83,224.76,2.4698732]
[1734480712970,13.30784555,224.83,224.75,2.4698732]
[1734480713283,10.0,224.95,224.8,20.0]
[1734480713478,11.77414555,224.9,224.82,2.4698732]
[1734480713852,11.77414555,224.9,224.81,3.1369334]
[1734480715489,10.0,224.95,224.82,23.776884]
[1734480715696,11.77414555,224.93,224.85,20.0]
[1734480715880,21.77414555,224.95,224.86,0.6669466]
[1734480716558,10.0,224.95,224.86,0.6669466]
[1734480717754,10.0,224.95,224.86,3.13176516]
[1734480718162,10.0,224.95,224.87,2.46481856]
[1734480718366,10.0,224.95,224.88,0.66681715]
[1734480718567,10.0,224.95,224.91,20.0]
[1734480719769,10.0,224.95,224.91,25.3185617]
[1734480719974,10.0,224.95,224.88,3.12449317]
[1734480719975,10.0,224.95,224.88,0.66681715]
[1734480720260,10.0,224.95,224.89,0.66684781]
[1734480720470,10.0,224.95,224.86,20.0]
[1734480720471,10.0,224.95,224.87,0.6668356]
[1734480723795,11.77414555,224.93,224.87,0.6668356]
[1734480724009,11.77414555,224.88,224.8,2.45767602]
[1734480724185,11.77414555,224.87,224.76,2.45767602]
[1734480724508,10.0,224.95,224.84,2.45767602]
[1734480724797,10.0,224.95,224.85,6.78802777]
[1734480725495,10.66681509,224.94,224.88,20.0]
[1734480725702,10.0,224.94,224.88,0.66691561]
[1734480726010,10.0,224.94,224.82,8.50123646]
[1734480726011,10.0,224.94,224.9,20.0]
[1734480727687,10.0,224.94,224.85,20.0]
[1734480728003,10.0,224.94,224.89,20.0]
[1734480730610,10.0,224.94,224.9,0.66681542]
[1734480732072,8.4065192,224.97,224.89,20.0]
[1734480732296,0.66681509,224.96,224.87,0.66673755]
[1734480734002,0.66681509,224.96,224.82,9.43865178]
[1734480734003,0.66681509,224.96,224.84,11.774145]
[1734480734310,0.66681509,224.96,224.85,0.66688103]
[1734480734908,20.18066475,224.97,224.87,20.0]
[1734480735089,20.18066475,224.97,224.88,0.66682275]
[1734480736891,8.4065192,224.97,224.88,0.66682275]
[1734480738916,11.77414555,224.95,224.87,20.0]
[1734480739086,11.77414555,224.92,224.83,0.66693903]
[1734480740020,11.77414555,224.94,224.83,0.66693903]
[1734480740316,0.66681509,224.93,224.83,0.66693903]
[1734480740621,0.66681509,224.93,224.84,20.0]
[1734480741901,8.4065192,224.97,224.85,0.66695276]
[1734480742114,8.4065192,224.97,224.88,20.0]
[1734480742302,8.4065192,224.97,224.89,0.6668136]
[1734480743304,0.66681509,224.96,224.89,0.6668136]
[1734480743506,0.66681509,224.96,224.88,20.0]
[1734480743895,12.44096064,224.96,224.85,0.66688678]
[1734480744524,11.77414555,224.94,224.84,3.11839701]
[1734480744818,0.66681509,224.93,224.84,0.66696085]
[1734480745598,0.66681509,224.93,224.83,2.45143616]
[1734480745826,0.66681509,224.93,224.82,4.72550441]
[1734480746000,12.44096064,224.93,224.82,4.72550441]
[1734480746200,12.44096064,224.93,224.83,2.45143616]
[1734480746523,0.66681509,224.93,224.83,2.45143616]
[1734480747320,0.66681509,224.93,224.82,2.27406825]
[1734480747515,0.66681509,224.93,224.83,2.45432545]
[1734480749256,0.66681509,224.93,224.84,2.45432545]
[1734480749909,0.66681509,224.93,224.84,3.12129927]
[1734480751104,0.66681509,224.93,224.84,3.1280041]
[1734480751521,0.66681509,224.93,224.84,2.46103028]
[1734480751919,12.44096064,224.93,224.84,2.46103028]
[1734480752129,0.66681509,224.93,224.84,2.46103028]
[1734480752430,12.44096064,224.96,224.84,0.66704892]
[1734480752641,12.44096064,224.96,224.84,3.1280792]
[1734480752642,11.77414555,224.95,224.84,3.1280792]
[1734480752842,0.66681509,224.94,224.84,3.1280792]
[1734480753045,11.77414555,224.96,224.84,23.1280792]
[1734480753046,0.66681509,224.96,224.84,23.1280792]
[1734480753249,9.07333429,224.97,224.85,2.46103028]
[1734480753542,20.84747984,224.97,224.86,0.66685461]
[1734480754516,9.07333429,224.97,224.86,0.66685461]
[1734480754732,20.84747984,224.97,224.86,0.66685461]
[1734480755055,11.77414555,224.95,224.85,2.466062]
[1734480755343,0.66681509,224.94,224.85,2.466062]
[1734480756042,11.77414555,224.9,224.83,2.466062]
[1734480756242,0.66681509,224.89,224.84,2.466062]
[1734480756828,0.66681509,224.89,224.83,2.466062]
[1734480757346,2.19091509,224.93,224.84,3.13316624]
[1734480757544,2.19091509,224.93,224.85,2.466062]
[1734480758359,2.19091509,224.93,224.86,2.466062]
[1734480758555,2.19091509,224.93,224.85,2.466062]
[1734480758756,11.77414555,224.92,224.85,2.466062]
[1734480758935,12.44096064,224.92,224.85,2.466062]
[1734480759744,2.19091509,224.93,224.86,2.466062]
[1734480759925,0.66681509,224.93,224.86,2.466062]
[1734480760615,0.66681509,224.94,224.86,2.466062]
[1734480761343,0.66681509,224.94,224.85,2.466062]
[1734480761934,0.66681509,224.96,224.86,0.66696218]
[1734480762133,0.66681509,224.96,224.86,3.13302418]
[1734480762442,0.66681509,224.96,224.86,2.466062]
[1734480762443,11.77414555,224.95,224.86,2.466062]
[1734480762641,0.66681509,224.94,224.86,2.466062]
[1734480763036,11.77414555,224.89,224.86,2.466062]
[1734480763213,11.77414555,224.89,224.83,2.466062]
[1734480763214,0.66681509,224.88,224.83,2.466062]
[1734480763845,0.66681509,224.88,224.83,2.47537075]
[1734480764637,11.77414555,224.87,224.82,2.47537075]
[1734480764953,11.77414555,224.87,224.8,2.47537075]
[1734480765246,0.66681509,224.86,224.8,2.47537075]
[1734480765416,0.66681509,224.86,224.79,22.47537075]
[1734480765620,11.77414555,224.85,224.8,2.47537075]
[1734480765936,0.66681509,224.84,224.79,2.47537075]
[1734480766322,0.66681509,224.84,224.77,2.47537075]
[1734480766521,0.66681509,224.84,224.76,2.47537075]
[1734480766745,0.66681509,224.84,224.77,2.47537075]
[1734480767364,11.77414555,224.89,224.78,0.66722889]
[1734480767565,11.77414555,224.89,224.8,2.47537075]
[1734480767725,0.66681509,224.88,224.8,2.47537075]
[1734480767923,11.77414555,224.89,224.81,0.66709245]
[1734480768339,11.77414555,224.89,224.81,3.1424632]
[1734480768653,11.77414555,224.89,224.81,0.66709245]
[1734480770117,0.66681509,224.88,224.81,0.66709245]
[1734480770321,11.77414555,224.89,224.81,0.66709245]
[1734480771973,0.66681509,224.94,224.81,23.1424632]
[1734480772243,11.77414555,224.94,224.84,2.47537075]
[1734480772421,11.77414555,224.94,224.85,0.66689926]
[1734480772622,0.66681509,224.96,224.85,0.66689926]
[1734480772846,11.77414555,224.94,224.85,0.66689926]
[1734480774035,11.77414555,224.96,224.85,3.13661571]
[1734480774737,12.44096064,224.96,224.85,3.13661571]
[1734480774952,11.77414555,224.96,224.85,3.13661571]
[1734480775341,11.77414555,224.96,224.86,2.46971645]
[1734480775536,11.77414555,224.96,224.87,0.66680672]
[1734480776452,11.77414555,224.96,224.87,20.66680672]
[1734480776643,11.77414555,224.96,224.87,0.66680672]
[1734480777049,11.77414555,224.95,224.87,0.66680672]
[1734480777958,0.66681509,224.94,224.86,2.46937259]
[1734480778132,11.77414555,224.93,224.86,2.46937259]
[1734480778453,11.77414555,224.93,224.85,2.46937259]
[1734480779945,20.18066475,224.97,224.86,0.66694432]
[1734480780150,20.18066475,224.97,224.88,20.0]
[1734480780349,8.4065192,224.97,224.89,0.66679375]
[1734480781252,20.18066475,224.97,224.9,2.46937259]
[1734480781653,20.18066475,224.97,224.9,2.46656172]
[1734480782378,8.4065192,224.97,224.91,3.13335852]
[1734480783260,20.18066475,224.97,224.91,2.46656172]
[1734480784245,20.18066475,224.97,224.9,2.46656172]
[1734480784659,0.66681509,224.96,224.9,2.46656172]
[1734480784873,0.66681509,224.96,224.88,22.46656172]
[1734480785234,11.77414555,224.95,224.88,2.46656172]
[1734480785597,12.44096064,224.94,224.85,8.51659296]
[1734480785740,0.66681509,224.94,224.85,8.51659296]
[1734480785931,11.77414555,224.95,224.86,2.46656172]
[1734480786133,0.66681509,224.94,224.85,8.51659296]
[1734480786657,11.77414555,224.95,224.85,8.51659296]
[1734480786858,0.66681509,224.94,224.85,8.51659296]
[1734480787059,0.66681509,224.94,224.85,6.05003124]
[1734480787359,0.66681509,224.94,224.86,0.6669215]
[1734480787556,11.77414555,224.95,224.88,20.0]
[1734480787734,0.66681509,224.94,224.88,20.0]
[1734480787946,11.77414555,224.95,224.88,20.0]
[1734480788478,8.4065192,224.97,224.88,20.0]
[1734480788479,20.84747984,224.97,224.88,20.0]
[1734480789474,20.84747984,224.97,224.88,20.66684084]
[1734480790069,20.18066475,224.97,224.88,23.13165051]
[1734480790242,20.18066475,224.97,224.88,20.66684084]
[1734480790637,8.4065192,224.97,224.88,20.66684084]
[1734480790843,8.4065192,224.97,224.88,34.18925428]
[1734480791066,8.4065192,224.97,224.92,20.0]
[1734480791255,8.4065192,224.97,224.93,0.66670404]
[1734480791445,8.4065192,224.97,224.93,20.66670404]
[1734480792052,8.4065192,224.97,224.96,2.45668422]
[1734480792264,8.4065192,224.97,224.93,20.66670404]
[1734480792446,8.4065192,224.97,224.96,2.45330837]
[1734480793362,8.4065192,224.97,224.93,20.66670404]
[1734480793667,8.4065192,224.97,224.95,2.45180863]
[1734480794486,8.4065192,224.97,224.94,5.38309889]
[1734480795744,8.4065192,224.97,224.94,11.05760377]
[1734480797267,8.4065192,224.97,224.94,5.38309889]
[1734480801154,8.4065192,224.97,224.96,20.0]
[1734480801357,8.4065192,224.97,224.96,25.38309889]
[1734480803549,8.4065192,224.97,224.96,5.38309889]
[1734480805567,8.4065192,224.97,224.96,3.64109889]
[1734480805748,8.4065192,224.97,224.96,9.31560377]
[1734480807175,8.4065192,224.97,224.96,9.98225174]
[1734480807985,8.4065192,224.97,224.96,9.31560377]
[1734480810456,8.4065192,224.97,224.96,9.98219163]
[1734480811188,8.4065192,224.97,224.96,12.42173379]
[1734480811375,10.0,224.99,224.98,20.0]
[1734480811579,10.0,224.99,224.98,31.59827108]
[1734480815505,10.0,224.99,224.92,25.81204244]
[1734480815697,10.0,224.99,224.93,12.15280607]
[1734480816590,10.0,224.99,224.96,22.43928879]
[1734480816793,10.0,224.99,224.97,12.15264062]
[1734480817595,20.0,225.01,224.97,12.15264062]
[1734480817596,20.0,225.01,225.0,20.0]
[1734480817795,20.0,225.01,225.0,31.48615322]
[1734480819577,20.0,225.01,225.0,34.59153506]
[1734480820378,20.0,225.01,225.0,32.1525627]
[1734480821301,0.5270165,225.14,225.04,20.0]
[1734480821471,0.5270165,225.14,225.08,20.0]
[1734480821677,11.7086013,225.13,225.05,11.48615322]
[1734480821883,0.66681509,225.12,225.05,11.48615322]
[1734480822416,11.7086013,225.11,225.05,11.48615322]
[1734480823628,0.66681509,225.1,225.05,11.48615322]
[1734480824618,11.7086013,225.09,225.05,11.48615322]
[1734480824790,0.66681509,225.08,225.05,11.48615322]
[1734480824995,0.66681509,225.08,225.0,11.48615322]
[1734480825540,11.7086013,225.07,225.0,11.48615322]
[1734480826103,0.66681509,225.06,225.0,11.48615322]
[1734480826613,11.7086013,225.05,225.0,11.48615322]
[1734480826794,0.66681509,225.04,225.0,11.48615322]
[1734480827489,11.7086013,225.08,225.0,11.48615322]
[1734480827690,0.66681509,225.07,225.0,11.48615322]
[1734480828305,11.7086013,225.06,225.0,11.48615322]
[1734480828497,11.7086013,225.04,225.0,11.48615322]
[1734480828813,11.7086013,225.02,224.93,5.54568958]
[1734480828996,0.66681509,225.01,224.94,5.94046364]
[1734480829202,1.5429,225.04,224.94,5.94046364]
[1734480829203,0.66681509,225.03,224.95,5.54568958]
[1734480829415,0.66681509,225.03,224.96,5.94046364]
[1734480829618,0.66681509,225.03,224.97,5.54568958]
[1734480829836,11.7086013,225.08,224.98,5.94046364]
[1734480830014,11.7086013,225.08,224.99,6.21220119]
[1734480830318,11.7086013,225.08,224.99,12.15266483]
[1734480830625,11.7086013,225.1,224.99,12.15266483]
[1734480830919,0.66681509,225.09,224.99,12.15266483]
[1734480831324,11.7086013,225.1,225.0,5.94046364]
[1734480831520,11.7086013,225.1,225.01,6.21212594]
[1734480831695,0.5270165,225.14,225.02,5.94046364]
[1734480831696,1.19383159,225.14,225.02,5.94046364]
[1734480831899,1.19383159,225.14,225.03,6.48437567]
[1734480831900,12.90243289,225.14,225.03,6.48437567]
[1734480832120,12.90243289,225.14,225.03,8.92482598]
[1734480833605,11.7086013,225.12,225.03,8.25843481]
[1734480833805,0.66681509,225.11,225.03,8.25843481]
[1734480835203,11.7086013,225.12,225.03,8.25742544]
[1734480835625,0.66681509,225.11,225.03,8.25742544]
[1734480836112,0.66681509,225.11,225.03,8.25886558]
[1734480836429,11.7086013,225.1,225.03,8.25886558]
[1734480837604,11.7086013,225.1,225.03,5.8179845]
[1734480838003,11.7086013,225.12,225.03,14.19932922]
[1734480838315,11.7086013,225.12,225.04,2.44088108]
[1734480838514,11.7086013,225.12,225.04,8.25961971]
[1734480838729,11.7086013,225.12,225.04,8.2599454]
[1734480839527,11.7086013,225.12,225.04,5.8179845]
[1734480840002,1.19383159,225.14,225.04,5.8179845]
[1734480840326,11.7086013,225.11,225.04,5.8179845]
[1734480840740,11.7086013,225.09,225.04,5.8179845]
[1734480840955,0.66681509,225.08,225.04,5.8179845]
[1734480842233,8.16346469,225.08,225.04,5.8179845]
[1734480842954,1.19383159,225.14,225.04,5.8179845]
[1734480843259,0.5270165,225.14,225.05,6.6068924]
[1734480843563,8.16346469,225.13,225.06,5.8179845]
[1734480843918,7.4966496,225.11,225.06,5.8179845]
[1734480844118,7.4966496,225.09,225.03,2.44351286]
[1734480844335,7.4966496,225.09,225.01,8.26309877]
[1734480845056,7.4966496,225.11,225.01,14.20356241]
[1734480845238,7.4966496,225.11,225.04,2.44511427]
[1734480845649,7.4966496,225.11,225.04,5.8179845]
[1734480846350,7.4966496,225.11,225.04,8.26309877]
[1734480846967,1.19383159,225.14,225.04,8.26309877]
[1734480847137,0.5270165,225.14,225.05,0.66638755]
[1734480847343,0.5270165,225.14,225.06,2.44511427]
[1734480847642,0.5270165,225.14,225.07,6.48425198]
[1734480848046,0.5270165,225.14,225.07,8.93085116]
[1734480848249,0.5270165,225.14,225.1,20.0]
[1734480848443,0.5270165,225.14,225.1,26.07418252]
[1734480848650,0.5270165,225.14,225.11,6.07418252]
[1734480853840,0.5270165,225.14,225.1,2.44603535]
[1734480856062,0.5270165,225.14,225.07,6.60675471]
[1734480856258,0.5270165,225.14,225.08,6.07418252]
[1734480856466,8.0236661,225.14,225.08,6.07418252]
[1734480857155,7.4966496,225.12,225.08,6.07418252]
[1734480857749,6.66124636,225.12,225.08,6.07418252]
[1734480858472,6.66124636,225.12,225.08,8.52262355]
[1734480858988,6.66124636,225.12,225.08,6.07418252]
[1734480860247,0.5270165,225.14,225.08,6.07418252]
[1734480860453,6.66124636,225.12,225.08,6.07418252]
[1734480860668,6.66124636,225.11,225.08,6.07418252]
[1734480861248,0.66681509,225.1,225.02,0.66639373]
[1734480861457,6.66124636,225.1,225.03,6.07418252]
[1734480861687,6.66124636,225.11,225.03,6.07418252]
[1734480862584,7.32806145,225.1,225.03,6.07418252]
[1734480864171,0.66681509,225.1,225.03,6.07418252]
[1734480864367,0.5270165,225.14,225.03,12.01464616]
[1734480864567,6.66124636,225.11,225.03,12.01464616]
[1734480864966,6.66124636,225.11,225.03,14.46232371]
[1734480865180,0.5270165,225.14,225.04,3.11405356]
[1734480865481,6.66124636,225.12,225.05,6.07418252]
[1734480865648,0.5270165,225.14,225.05,6.07418252]
[1734480865649,0.5270165,225.14,225.06,0.66636571]
[1734480865855,7.18826286,225.14,225.06,6.74054823]
[1734480866094,7.18826286,225.14,225.06,6.07418252]
[1734480866095,6.66124636,225.12,225.06,6.07418252]
[1734480866287,0.5270165,225.14,225.06,6.07418252]
[1734480866587,6.66124636,225.12,225.06,8.52186007]
[1734480867090,6.66124636,225.13,225.06,8.52186007]
[1734480867385,6.66124636,225.13,225.06,8.52132452]
[1734480868278,0.5270165,225.14,225.06,8.52132452]
[1734480868458,7.18826286,225.14,225.06,8.52132452]
[1734480868662,0.66681509,225.13,225.06,8.52132452]
[1734480869162,0.66681509,225.13,225.06,6.07418252]
[1734480870581,7.32806145,225.13,225.06,6.07418252]
[1734480871491,0.66681509,225.13,225.06,6.07418252]
[1734480871671,6.66124636,225.12,225.06,6.07418252]
[1734480872187,7.18826286,225.14,225.06,6.07418252]
[1734480872385,7.32806145,225.13,225.06,8.52530691]
[1734480873081,7.32806145,225.13,225.06,6.07418252]
[1734480873586,0.66681509,225.13,225.06,6.07418252]
[1734480873775,0.5270165,225.14,225.07,0.66636722]
[1734480874092,0.5270165,225.14,225.08,6.07418252]
[1734480874288,0.5270165,225.14,225.08,8.52530691]
[1734480874874,0.5270165,225.14,225.1,2.45112439]
[1734480875265,0.5270165,225.14,225.1,8.52530691]
[1734480875468,0.5270165,225.14,225.11,9.19149826]
[1734480875900,0.5270165,225.14,225.12,2.45112439]
[1734480876198,0.5270165,225.14,225.13,0.66609119]
[1734480876582,0.5270165,225.14,225.13,6.74027371]
[1734480876975,0.5270165,225.14,225.13,6.07418252]
[1734480877367,0.5270165,225.14,225.13,6.7402954]
[1734480877567,0.5270165,225.14,225.13,6.07418252]
[1734480878974,7.18826286,225.14,225.13,6.07418252]
[1734480879170,7.18826286,225.14,225.08,2.45024648]
[1734480879372,6.66124636,225.12,225.07,2.45024648]
[1734480879573,6.66124636,225.11,225.07,2.45024648]
[1734480879887,6.66124636,225.12,225.07,2.45024648]
[1734480880069,6.66124636,225.13,225.06,2.45024648]
[1734480881606,6.66124636,225.12,225.06,2.45024648]
[1734480882683,6.66124636,225.12,225.07,2.45024648]
[1734480882877,6.66124636,225.12,225.06,2.45024648]
[1734480883505,6.66124636,225.12,225.04,6.74036097]
[1734480883819,6.66124636,225.12,225.06,2.4506981]
[1734480884184,6.66124636,225.12,225.07,2.4506981]
[1734480884487,6.66124636,225.12,225.06,2.4506981]
[1734480884700,6.66124636,225.12,225.07,2.4506981]
[1734480884878,6.66124636,225.12,225.04,6.74036097]
[1734480884879,6.66124636,225.12,225.06,2.4506981]
[1734480885079,6.66124636,225.13,225.06,2.4506981]
[1734480885288,6.66124636,225.13,225.07,2.4506981]
[1734480885579,0.5270165,225.14,225.11,2.4506981]
[1734480885804,0.5270165,225.14,225.11,22.44904928]
[1734480886116,0.5270165,225.14,225.11,20.0]
[1734480886722,0.5270165,225.14,225.1,2.44904928]
[1734480887027,0.5270165,225.14,225.1,2.45011779]
[1734480887606,0.5270165,225.14,225.09,3.11632678]
[1734480889116,0.5270165,225.14,225.09,3.11635737]
[1734480890404,0.5270165,225.14,225.09,0.66623958]
[1734480890613,0.5270165,225.14,225.1,2.45155964]
[1734480891218,0.5270165,225.14,225.11,7.985]
[1734480891499,0.1820834,225.23,225.14,20.0]
[1734480891655,0.1820834,225.23,225.18,2.4490395]
[1734480892211,0.1820834,225.23,225.17,2.4490395]
[1734480892430,0.1820834,225.23,225.18,3.11498807]
[1734480892656,0.1820834,225.23,225.19,2.4490395]